[Event "129th New Zealand Championship 2022"]
[Site "Christchurch"]
[Date "2022.01.03"]
[Round "1.9"]
[White "Van Der Hoorn, Thomas"]
[Black "Winter, Ryan"]
[Result "1/2-1/2"]
[ECO "B48"]
[WhiteElo "1685"]
[BlackElo "2006"]
[Annotator "NA"]
[PlyCount "99"]
[EventDate "2022.01.02"]
[EventType "swiss"]
[EventCountry "NZL"]
[SourceTitle "playchess.com"]
[Source "ChessBase"]
[SourceQuality "1"]
[TimeControl "40/5400+30:1800+30"]

1. e4 {[%emt 0:00:02]} c5 {[%emt 0:00:16]} 2. Nf3 {[%emt 0:00:07]} e6 {[%emt 0:00:26]} 3. d4 {[%emt 0:00:08]} cxd4 {[%emt 0:00:31]} 4. Nxd4 {[%emt 0:00:07]} Nc6 {[%emt 0:00:15]} 5. Nc3 {[%emt 0:01:57]} Qc7 {[%emt 0:00:56]} 6. Be3 {[%emt 0:01:15]} a6 {[%emt 0:01:23]} 7. Qd2 {[%emt 0:01:05]} Nf6 {[%emt 0:00:50]} 8. f3 {[%emt 0:10:46]} Be7 {[%emt 0:05:30]} 9. O-O-O {[%emt 0:00:52]} b5 {[%emt 0:00:35]} 10. Bd3 {[%emt 0:19:10]} Bb7 {[%emt 0:08:53]} 11. Kb1 {[%emt 0:08:40]} Nxd4 {[%emt 0:26:05]} 12. Bxd4 {[%emt 0:00:09]} e5 {[%emt 0:01:00]} 13. Be3 {[%emt 0:02:03]} b4 {[%emt 0:00:27]} 14. Na4 {[%emt 0:01:08]} d5 {[%emt 0:00:51]} 15. exd5 {[%emt 0:02:30]} Nxd5 {[%emt 0:00:32]} 16. Be4 {[%emt 0:02:02]} Rd8 {[%emt 0:05:11]} 17. Qf2 {[%emt 0:04:56]} O-O {[%emt 0:09:43]} 18. Bc5 {[%emt 0:06:47]} Bc6 {[%emt 0:21:38]} 19. Nb6 {[%emt 0:13:50]} Bxc5 {[%emt 0:08:09]} 20. Qxc5 {[%emt 0:00:09]} Nxb6 {[%emt 0:00:37]} 21. Qxc6 {[%emt 0:00:17]} Qxc6 {[%emt 0:00:35]} 22. Bxc6 {[%emt 0:00:06]} g6 {[%emt 0:02:07]} 23. b3 {[%emt 0:01:06]} Kg7 {[%emt 0:00:34]} 24. Kc1 {[%emt 0:03:37]} f5 {[%emt 0:01:02]} 25. Rxd8 {[%emt 0:01:15]} Rxd8 {[%emt 0:00:05]} 26. Rd1 {[%emt 0:00:07]} Rxd1+ {[%emt 0:00:23]} 27. Kxd1 {[%emt 0:00:07]} Kf6 {[%emt 0:00:07]} 28. Ke2 {[%emt 0:01:18]} Ke6 {[%emt 0:01:22]} 29. Kd3 {[%emt 0:01:20]} Kd6 {[%emt 0:00:24]} 30. Bb7 {[%emt 0:00:46]} a5 {[%emt 0:00:08]} 31. c4 {[%emt 0:03:48]} bxc3 {[%emt 0:00:36]} 32. Kxc3 {[%emt 0:00:06]} Kc5 {[%emt 0:00:18]} 33. a3 {[%emt 0:01:35]} Kb5 {[%emt 0:01:10]} 34. h4 {[%emt 0:02:02]} Nd7 {[%emt 0:01:27]} 35. Bd5 {[%emt 0:02:15]} Nf6 {[%emt 0:00:12]} 36. Bc4+ {[%emt 0:00:20]} Kc5 {[%emt 0:00:10]} 37. b4+ {[%emt 0:00:12]} axb4+ {[%emt 0:00:05]} 38. axb4+ {[%emt 0:00:05]} Kc6 {[%emt 0:01:38]} 39. g3 {[%emt 0:02:03]} Nh5 {[%emt 0:02:24]} 40. g4 {[%emt 0:00:34]} fxg4 {[%emt 0:00:52]} 41. fxg4 {[%emt 0:30:08]} Nf6 {[%emt 0:30:17]} 42. g5 {[%emt 0:00:25]} Ne4+ {[%emt 0:00:25]} 43. Kd3 {[%emt 0:00:38]} Nd6 {[%emt 0:00:05]} 44. Bg8 {[%emt 0:00:47]} Nf5 {[%emt 0:00:01]} 45. Bxh7 {[%emt 0:00:22]} Nxh4 {[%emt 0:00:02]} 46. Ke4 {[%emt 0:00:14]} Kb5 {[%emt 0:00:19]} 47. Kxe5 {[%emt 0:01:17]} Nf3+ {[%emt 0:00:06]} 48. Kf6 {[%emt 0:00:04]} Nxg5 {[%emt 0:00:07]} 49. Kxg5 {[%emt 0:00:04]} Kxb4 {[%emt 0:00:09]} 50. Bxg6 {[%emt 0:00:41]} 1/2-1/2

[Event "129th New Zealand Championship 2022"]
[Site "Christchurch"]
[Date "2022.01.03"]
[Round "1.10"]
[White "Rains, Edward"]
[Black "Ha, Huy Minh (Timothy)"]
[Result "1-0"]
[ECO "C56"]
[WhiteElo "2004"]
[BlackElo "1637"]
[Annotator "NA"]
[PlyCount "55"]
[EventDate "2022.01.02"]
[EventType "swiss"]
[EventCountry "NZL"]
[SourceTitle "playchess.com"]
[Source "ChessBase"]
[SourceQuality "1"]
[TimeControl "40/5400+30:1800+30"]

1. e4 {[%emt 0:00:05]} e5 {[%emt 0:00:05]} 2. Nf3 {[%emt 0:00:07]} Nc6 {[%emt 1:31:25]} 3. d4 {[%emt 0:00:08]} exd4 {[%emt 0:00:00]} 4. Bc4 {[%emt 0:00:13]} Nf6 {[%emt 0:00:00]} 5. e5 {[%emt 0:00:17]} Ne4 {[%emt 0:00:00]} 6. Bd5 {[%emt 0:03:15]} Nc5 {[%emt 0:00:00]} 7. O-O {[%emt 0:10:18]} Ne6 {[%emt 0:00:00]} 8. Nbd2 {[%emt 0:00:30]} Be7 {[%emt 0:00:00]} 9. Nb3 {[%emt 0:01:26]} O-O {[%emt 0:00:00]} 10. Re1 {[%emt 0:10:36]} d6 {[%emt 0:00:00]} 11. Bxc6 {[%emt 0:00:30]} bxc6 {[%emt 0:00:00]} 12. Nbxd4 {[%emt 0:04:56]} Bd7 {[%emt 0:00:00]} 13. Nf5 {[%emt 0:04:44]} dxe5 {[%emt 0:00:00]} 14. Nxe5 {[%emt 0:05:48]} Be8 {[%emt 0:00:00]} 15. Nxe7+ {[%emt 0:15:12]} Qxe7 {[%emt 0:00:00]} 16. Be3 {[%emt 0:00:54]} Qf6 {[%emt 0:00:00]} 17. Nd3 {[%emt 0:03:43]} Bd7 {[%emt 0:00:00]} 18. Nc5 {[%emt 0:00:30]} Bc8 {[%emt 0:00:00]} 19. b3 {[%emt 0:00:30]} Re8 {[%emt 0:00:00]} 20. Qd2 {[%emt 0:08:44]} Nxc5 {[%emt 0:09:00]} 21. Bg5 {[%emt 0:04:23]} Qe6 {[%emt 0:00:00]} 22. Rxe6 Bxe6 23. Qb4 {[%emt 0:04:10]} Nd7 24. c4 {[%emt 0:00:30]} Ne5 {[%emt 0:00:00]} 25. Qc5 {[%emt 0:03:38]} f6 {[%emt 0:00:00]} 26. Be3 {[%emt 0:03:56]} Bd7 {[%emt 0:00:00]} 27. h3 {[%emt 0:00:30]} a6 {[%emt 0:00:00]} 28. Qa5 {[%emt 0:03:29]} 1-0

[Event "129th New Zealand Championship 2022"]
[Site "Christchurch"]
[Date "2022.01.03"]
[Round "1.12"]
[White "Lee, Edward S"]
[Black "Gomes, Luiz Alexandre de So"]
[Result "1-0"]
[ECO "B23"]
[WhiteElo "1974"]
[BlackElo "2335"]
[Annotator "ChessBase"]
[PlyCount "87"]
[EventDate "2022.01.02"]
[EventType "swiss"]
[EventCountry "NZL"]
[SourceTitle "playchess.com"]
[Source "ChessBase"]
[SourceQuality "1"]
[TimeControl "40/5400+30:1800+30"]

1. e4 {[%emt 0:00:03]} c5 {[%emt 0:00:07]} 2. Nc3 {[%emt 0:00:10]} Nc6 {[%emt 0:00:17]} 3. f4 {[%emt 0:00:08]} g6 {[%emt 0:00:10]} 4. Nf3 {[%emt 0:00:26]} Bg7 {[%emt 0:00:25]} 5. Bc4 {[%emt 0:02:08]} a6 {[%emt 0:02:07]} 6. a4 {[%emt 0:00:19]} e6 {[%emt 0:00:53]} 7. O-O {[%emt 0:00:44]} Nd4 {[%emt 0:01:39]} 8. d3 {[%emt 0:03:11]} Ne7 {[%emt 0:03:13]} 9. e5 {[%emt 0:02:29]} Nef5 {[%emt 0:08:55]} 10. g4 {[%emt 0:09:46]} Nxf3+ {[%emt 0:01:48]} 11. Qxf3 {[%emt 0:00:28]} Nd4 {[%emt 0:00:29]} 12. Qg2 {[%emt 0:01:44]} d5 {[%emt 0:04:33]} 13. exd6 {[%emt 0:00:29]} Qxd6 {[%emt 0:00:48]} 14. Ne4 {[%emt 0:00:28]} Qe7 {[%emt 0:14:19]} 15. c3 {[%emt 0:01:03]} Nc6 {[%emt 0:01:38]} 16. Be3 {[%emt 0:00:46]} O-O {[%emt 0:16:30]} 17. Bxc5 {[%emt 0:00:37]} Qc7 {[%emt 0:00:22]} 18. Bxf8 {[%emt 0:03:03]} Bxf8 {[%emt 0:00:15]} 19. Nf6+ {[%emt 0:08:21]} Kh8 {[%emt 0:01:08]} 20. Rf3 {[%emt 0:00:58]} Be7 {[%emt 0:05:34]} 21. g5 {[%emt 0:02:05]} Qd8 {[%emt 0:01:23]} 22. Ng4 {[%emt 0:02:26]} Bc5+ {[%emt 0:03:54]} 23. Kh1 {[%emt 0:05:49]} b5 {[%emt 0:11:06]} 24. axb5 {[%emt 0:06:06]} Na5 {[%emt 0:01:19]} 25. b4 {[%emt 0:05:10]} Nxc4 {[%emt 0:00:48]} 26. bxc5 {[%emt 0:02:46]} Bb7 {[%emt 0:02:52]} 27. dxc4 {[%emt 0:18:53]} Qc7 {[%emt 0:06:09]} 28. c6 {[%emt 0:03:14]} axb5 {[%emt 0:00:42]} 29. Rxa8+ {[%emt 0:00:17]} Bxa8 {[%emt 0:00:01]} 30. cxb5 {[%emt 0:00:13]} Qa5 {[%emt 0:00:22]} 31. Qe2 {[%emt 0:00:20]} f6 {[%emt 0:02:39]} 32. gxf6 {[%emt 0:00:50]} Qd8 {[%emt 0:00:29]} 33. Rd3 {[%emt 0:00:28]} Qc8 {[%emt 0:00:35]} 34. Qd1 {[%emt 0:01:00]} Bxc6+ {[%emt 0:00:18]} 35. bxc6 {[%emt 0:00:15]} Qxc6+ {[%emt 0:00:02]} 36. Kg1 {[%emt 0:00:16]} Qc5+ {[%emt 0:00:57]} 37. Kf1 {[%emt 0:00:15]} Qc4 {[%emt 0:00:03]} 38. Qf3 {[%emt 0:00:27]} Qa6 {[%emt 0:00:35]} 39. Kg2 {[%emt 0:00:41]} Qc8 {[%emt 0:00:52]} 40. Qd1 {[%emt 0:01:43]} Qc6+ {[%emt 0:01:03]} 41. Kg3 {[%emt 0:30:16]} h5 {[%emt 0:30:20]} 42. Rd8+ {[%emt 0:00:18]} Kh7 {[%emt 0:09:51]} 43. Qd7+ {[%emt 0:20:51]} Qxd7 {[%emt 0:00:00]} 44. Rxd7+ {[%emt 0:00:00]} 1-0

[Event "129th New Zealand Championship 2022"]
[Site "Christchurch"]
[Date "2022.01.03"]
[Round "2.1"]
[White "McNabb, Matthew David"]
[Black "Ker, Anthony F"]
[Result "1/2-1/2"]
[ECO "B14"]
[WhiteElo "2029"]
[BlackElo "2303"]
[Annotator "ChessBase"]
[PlyCount "110"]
[EventDate "2022.01.02"]
[EventType "swiss"]
[EventCountry "NZL"]
[SourceTitle "playchess.com"]
[Source "ChessBase"]
[SourceQuality "1"]
[TimeControl "40/5400+30:1800+30"]

1. Nf3 {[%emt 0:00:03]} c5 {[%emt 0:00:09]} 2. e3 {[%emt 0:00:05]} g6 {[%emt 0:00:09]} 3. d4 {[%emt 0:00:22]} cxd4 {[%emt 0:01:14]} 4. exd4 {[%emt 0:00:04]} Bg7 {[%emt 0:00:09]} 5. c4 {[%emt 0:01:07]} d5 {[%emt 0:00:24]} 6. Nc3 {[%emt 0:01:01]} Nf6 {[%emt 0:00:08]} 7. Qb3 {[%emt 0:01:30]} dxc4 {[%emt 0:00:56]} 8. Bxc4 {[%emt 0:00:32]} O-O {[%emt 0:00:08]} 9. Ne5 {[%emt 0:12:40]} e6 {[%emt 0:00:17]} 10. Be3 {[%emt 0:01:34]} Nc6 {[%emt 0:00:48]} 11. Nxc6 {[%emt 0:00:30]} bxc6 {[%emt 0:00:06]} 12. O-O {[%emt 0:04:00]} a5 {[%emt 0:01:22]} 13. Rad1 {[%emt 0:10:04]} Ba6 {[%emt 0:03:10]} 14. Bxa6 {[%emt 0:02:44]} Rxa6 {[%emt 0:00:03]} 15. Bg5 {[%emt 0:12:48]} Qb6 {[%emt 0:04:12]} 16. Bxf6 {[%emt 0:00:15]} Qxb3 {[%emt 0:00:44]} 17. axb3 {[%emt 0:00:03]} Bxf6 {[%emt 0:00:06]} 18. Ne4 {[%emt 0:05:13]} Bg7 {[%emt 0:01:01]} 19. Nc5 {[%emt 0:02:20]} Raa8 {[%emt 0:04:35]} 20. Rd3 {[%emt 0:03:44]} Rfd8 {[%emt 0:00:12]} 21. Rfd1 {[%emt 0:01:20]} Rd5 {[%emt 0:00:47]} 22. Kf1 {[%emt 0:03:29]} e5 {[%emt 0:03:27]} 23. Ra1 {[%emt 0:03:30]} Bf8 {[%emt 0:13:25]} 24. b4 {[%emt 0:11:40]} exd4 {[%emt 0:11:08]} 25. Ne4 {[%emt 0:01:29]} Rb5 {[%emt 0:06:47]} 26. Rxa5 {[%emt 0:10:03]} Rbxa5 {[%emt 0:03:40]} 27. bxa5 {[%emt 0:00:02]} c5 {[%emt 0:00:37]} 28. Ra3 {[%emt 0:03:05]} f5 {[%emt 0:03:20]} 29. Nf6+ {[%emt 0:00:14]} Kf7 {[%emt 0:03:13]} 30. Nd7 {[%emt 0:04:04]} Ke6 {[%emt 0:02:32]} 31. Nxf8+ {[%emt 0:00:46]} Rxf8 {[%emt 0:00:06]} 32. a6 {[%emt 0:01:35]} Kd5 {[%emt 0:01:04]} 33. a7 {[%emt 0:00:05]} Ra8 {[%emt 0:00:04]} 34. Ke2 {[%emt 0:02:23]} Kc6 {[%emt 0:10:34]} 35. Kd3 {[%emt 0:00:36]} Kb6 {[%emt 0:00:10]} 36. b4 {[%emt 0:01:54]} cxb4 {[%emt 0:01:31]} 37. Ra4 {[%emt 0:00:29]} Rxa7 {[%emt 0:02:19]} 38. Rxb4+ {[%emt 0:00:06]} Kc5 {[%emt 0:02:34]} 39. Rc4+ {[%emt 0:00:04]} Kd5 {[%emt 0:00:07]} 40. Rxd4+ {[%emt 0:00:00]} Ke5 {[%emt 0:00:00]} 41. Rb4 {[%emt 0:02:02]} Ra3+ {[%emt 0:08:48]} 42. Ke2 {[%emt 0:00:43]} Ra2+ {[%emt 0:00:07]} 43. Kf3 {[%emt 0:02:39]} g5 {[%emt 0:00:56]} 44. Rb5+ {[%emt 0:00:06]} Kf6 {[%emt 0:00:08]} 45. Rb6+ {[%emt 0:00:04]} Kg7 {[%emt 0:00:08]} 46. h3 {[%emt 0:03:23]} Ra7 {[%emt 0:01:12]} 47. Ke3 {[%emt 0:06:49]} Re7+ {[%emt 0:00:42]} 48. Kf3 {[%emt 0:00:07]} Rf7 {[%emt 0:00:55]} 49. h4 {[%emt 0:01:43]} gxh4 {[%emt 0:07:25]} 50. Rb4 {[%emt 0:00:44]} Kg6 {[%emt 0:04:18]} 51. Rxh4 {[%emt 0:00:08]} Kg5 {[%emt 0:00:07]} 52. Ra4 {[%emt 0:00:32]} Rb7 {[%emt 0:00:15]} 53. g3 {[%emt 0:00:36]} h5 {[%emt 0:02:48]} 54. Kg2 {[%emt 0:00:07]} Rb2 {[%emt 0:00:36]} 55. Rc4 {[%emt 0:00:21]} Ra2 {[%emt 0:00:58]} 1/2-1/2

[Event "129th New Zealand Championship 2022"]
[Site "Christchurch"]
[Date "2022.01.03"]
[Round "2.2"]
[White "Dive, Russell John"]
[Black "Cilia Vincenti, David"]
[Result "1-0"]
[ECO "A96"]
[WhiteElo "2265"]
[BlackElo "2076"]
[Annotator "ChessBase"]
[PlyCount "79"]
[EventDate "2022.01.02"]
[EventType "swiss"]
[EventCountry "NZL"]
[SourceTitle "playchess.com"]
[Source "ChessBase"]
[SourceQuality "1"]
[TimeControl "40/5400+30:1800+30"]

1. Nf3 {[%emt 0:00:02]} e6 {[%emt 0:00:05]} 2. c4 {[%emt 0:00:43]} f5 {[%emt 0:00:07]} 3. g3 {[%emt 0:00:13]} Nf6 {[%emt 0:00:10]} 4. Bg2 {[%emt 0:00:06]} Be7 {[%emt 0:01:01]} 5. O-O {[%emt 0:00:10]} O-O {[%emt 0:00:05]} 6. Nc3 {[%emt 0:00:22]} d6 {[%emt 0:00:19]} 7. d4 {[%emt 0:00:27]} Ne4 {[%emt 0:00:07]} 8. Qc2 {[%emt 0:00:48]} Nxc3 {[%emt 0:00:07]} 9. Qxc3 {[%emt 0:00:06]} a5 {[%emt 0:01:39]} 10. Rd1 {[%emt 0:02:22]} Bf6 {[%emt 0:01:25]} 11. Qc2 {[%emt 0:10:25]} Qe8 {[%emt 0:13:18]} 12. e4 {[%emt 0:01:36]} fxe4 {[%emt 0:04:55]} 13. Qxe4 {[%emt 0:00:03]} Nc6 {[%emt 0:00:38]} 14. Bf4 {[%emt 0:26:59]} e5 {[%emt 0:06:05]} 15. dxe5 {[%emt 0:02:48]} dxe5 {[%emt 0:01:53]} 16. Re1 {[%emt 0:13:08]} Qf7 {[%emt 0:08:25]} 17. Bd2 {[%emt 0:11:49]} g6 {[%emt 0:14:28]} 18. Bc3 {[%emt 0:17:34]} Bf5 {[%emt 0:02:12]} 19. Qe3 {[%emt 0:00:01]} e4 {[%emt 0:11:35]} 20. Nd2 {[%emt 0:02:36]} Nb4 {[%emt 0:13:29]} 21. Nxe4 {[%emt 0:03:47]} Bxc3 {[%emt 0:04:16]} 22. Qxc3 {[%emt 0:04:09]} Bxe4 {[%emt 0:00:21]} 23. Rxe4 {[%emt 0:00:34]} Qxf2+ {[%emt 0:00:54]} 24. Kh1 {[%emt 0:00:02]} Rad8 {[%emt 0:08:12]} 25. Re7 {[%emt 0:01:04]} Qf6 {[%emt 0:02:39]} 26. Rxc7 {[%emt 0:00:30]} Qxc3 {[%emt 0:00:49]} 27. bxc3 {[%emt 0:00:02]} Nc2 {[%emt 0:00:23]} 28. Rb1 {[%emt 0:01:13]} Ne3 {[%emt 0:00:33]} 29. Bd5+ {[%emt 0:00:47]} Kh8 {[%emt 0:02:00]} 30. h4 {[%emt 0:00:22]} Nxd5 {[%emt 0:01:40]} 31. cxd5 {[%emt 0:00:02]} Rxd5 {[%emt 0:00:01]} 32. Rbxb7 {[%emt 0:00:56]} Rh5 {[%emt 0:00:38]} 33. Kg2 {[%emt 0:00:17]} Rg8 {[%emt 0:00:32]} 34. a4 {[%emt 0:00:43]} g5 {[%emt 0:00:18]} 35. Rb5 {[%emt 0:00:19]} Rh6 {[%emt 0:00:18]} 36. hxg5 {[%emt 0:00:35]} Rh5 {[%emt 0:00:31]} 37. Rcc5 {[%emt 0:00:39]} Rd8 {[%emt 0:00:58]} 38. Rc7 {[%emt 0:00:34]} h6 {[%emt 0:01:05]} 39. gxh6 {[%emt 0:00:33]} Rg8 {[%emt 0:01:04]} 40. Rxh5 {[%emt 0:00:00]} 1-0

[Event "129th New Zealand Championship 2022"]
[Site "Christchurch"]
[Date "2022.01.03"]
[Round "2.3"]
[White "Rains, Edward"]
[Black "Lukey, Stephen G"]
[Result "0-1"]
[ECO "E92"]
[WhiteElo "2004"]
[BlackElo "2162"]
[Annotator "NA"]
[PlyCount "126"]
[EventDate "2022.01.02"]
[EventType "swiss"]
[EventCountry "NZL"]
[SourceTitle "playchess.com"]
[Source "ChessBase"]
[SourceQuality "1"]
[TimeControl "40/5400+30:1800+30"]

1. d4 {[%emt 0:00:06]} Nf6 {[%emt 0:00:25]} 2. c4 {[%emt 0:00:11]} g6 {[%emt 0:00:09]} 3. Nc3 {[%emt 0:00:08]} Bg7 {[%emt 0:00:07]} 4. e4 {[%emt 0:00:11]} d6 {[%emt 0:00:03]} 5. Nf3 {[%emt 0:00:14]} O-O {[%emt 0:00:17]} 6. Be2 {[%emt 0:00:06]} e5 {[%emt 0:00:05]} 7. Be3 {[%emt 0:00:07]} Ng4 {[%emt 0:04:43]} 8. Bg5 {[%emt 0:00:08]} f6 {[%emt 0:00:26]} 9. Bc1 {[%emt 0:00:07]} Nc6 {[%emt 0:02:03]} 10. d5 {[%emt 0:08:12]} Ne7 {[%emt 0:00:47]} 11. h3 {[%emt 0:00:24]} Nh6 {[%emt 0:00:05]} 12. g4 {[%emt 0:07:59]} Nf7 {[%emt 0:01:59]} 13. Rg1 {[%emt 0:07:36]} Kh8 {[%emt 0:04:18]} 14. Qc2 {[%emt 0:06:12]} f5 {[%emt 0:19:13]} 15. gxf5 {[%emt 0:09:02]} gxf5 {[%emt 0:00:05]} 16. Bg5 {[%emt 0:10:19]} Nxg5 {[%emt 0:07:08]} 17. Nxg5 {[%emt 0:00:14]} Bh6 {[%emt 0:06:09]} 18. Qd2 {[%emt 0:09:07]} Ng6 {[%emt 0:06:09]} 19. Nf7+ {[%emt 0:11:13]} Rxf7 {[%emt 0:00:05]} 20. Qxh6 {[%emt 0:00:06]} Nf4 {[%emt 0:11:55]} 21. Bh5 {[%emt 0:09:14]} Nxh5 {[%emt 0:00:06]} 22. Qxh5 {[%emt 0:00:06]} Qf6 {[%emt 0:00:45]} 23. f3 {[%emt 0:10:56]} Bd7 {[%emt 0:01:07]} 24. O-O-O {[%emt 0:01:46]} Raf8 {[%emt 0:03:09]} 25. Rg5 {[%emt 0:05:10]} Rg7 {[%emt 0:01:35]} 26. Rxg7 {[%emt 0:01:58]} Qxg7 {[%emt 0:00:24]} 27. Qh4 {[%emt 0:00:52]} Qf6 {[%emt 0:07:13]} 28. Qxf6+ {[%emt 0:01:26]} Rxf6 {[%emt 0:00:04]} 29. h4 {[%emt 0:00:06]} a6 {[%emt 0:03:33]} 30. Rh1 {[%emt 0:01:15]} Kg7 {[%emt 0:00:25]} 31. Rh2 {[%emt 0:00:26]} Kh6 {[%emt 0:00:13]} 32. Kd2 {[%emt 0:00:33]} fxe4 {[%emt 0:02:32]} 33. fxe4 {[%emt 0:00:30]} Rf4 {[%emt 0:01:36]} 34. Ke3 {[%emt 0:00:26]} Kh5 {[%emt 0:05:25]} 35. Ne2 {[%emt 0:00:28]} Rxh4 {[%emt 0:00:49]} 36. Rg2 {[%emt 0:00:27]} Rg4 {[%emt 0:00:54]} 37. Rf2 {[%emt 0:00:10]} Rg7 {[%emt 0:01:12]} 38. Rh2+ {[%emt 0:00:42]} Kg6 {[%emt 0:00:12]} 39. Kf3 {[%emt 0:01:47]} h5 {[%emt 0:00:13]} 40. Ng3 {[%emt 0:00:00]} Bg4+ {[%emt 0:00:00]} 41. Ke3 {[%emt 0:07:41]} Rf7 {[%emt 0:00:55]} 42. Rf2 {[%emt 0:01:12]} Rxf2 {[%emt 0:00:08]} 43. Kxf2 {[%emt 0:00:05]} Kg5 {[%emt 0:00:10]} 44. Ke3 {[%emt 0:00:20]} h4 {[%emt 0:00:23]} 45. Nf1 {[%emt 0:00:33]} Bh3 {[%emt 0:04:13]} 46. Nd2 {[%emt 0:08:42]} Kg4 {[%emt 0:01:03]} 47. c5 {[%emt 0:01:16]} Kg3 {[%emt 0:02:21]} 48. c6 {[%emt 0:06:00]} bxc6 {[%emt 0:00:36]} 49. dxc6 {[%emt 0:00:06]} Be6 {[%emt 0:01:18]} 50. a4 {[%emt 0:01:31]} h3 {[%emt 0:01:53]} 51. b4 {[%emt 0:00:11]} Kg2 {[%emt 0:00:59]} 52. Nf3 {[%emt 0:00:40]} Bc4 {[%emt 0:07:29]} 53. Nh4+ {[%emt 0:01:39]} Kg3 {[%emt 0:04:13]} 54. Nf5+ {[%emt 0:00:22]} Kg2 {[%emt 0:03:53]} 55. Nh4+ {[%emt 0:00:34]} Kf1 {[%emt 0:03:06]} 56. Nf3 {[%emt 0:01:03]} d5 {[%emt 0:03:27]} 57. b5 {[%emt 0:04:16]} d4+ {[%emt 0:01:06]} 58. Kd2 {[%emt 0:01:42]} axb5 {[%emt 0:00:25]} 59. a5 {[%emt 0:01:14]} b4 {[%emt 0:00:25]} 60. Nxe5 {[%emt 0:00:41]} h2 {[%emt 0:00:54]} 61. Nxc4 {[%emt 0:00:37]} h1=Q {[%emt 0:00:07]} 62. Kc1 {[%emt 0:00:24]} Ke2+ {[%emt 0:00:22]} 63. Kb2 {[%emt 0:00:06]} Qxe4 {[%emt 0:00:14]} 0-1

[Event "129th New Zealand Championship 2022"]
[Site "Christchurch"]
[Date "2022.01.03"]
[Round "2.4"]
[White "Gong, Daniel Hanwen"]
[Black "Lee, Edward S"]
[Result "1-0"]
[ECO "D02"]
[WhiteElo "2269"]
[BlackElo "1974"]
[Annotator "ChessBase"]
[PlyCount "121"]
[EventDate "2022.01.02"]
[EventType "swiss"]
[EventCountry "NZL"]
[SourceTitle "playchess.com"]
[Source "ChessBase"]
[SourceQuality "1"]
[TimeControl "40/5400+30:1800+30"]

1. d4 {[%emt 0:00:03]} Nf6 {[%emt 0:00:07]} 2. Bf4 {[%emt 0:00:04]} e6 {[%emt 0:00:16]} 3. e3 {[%emt 0:00:05]} d5 {[%emt 0:00:22]} 4. Bd3 {[%emt 0:00:38]} c5 {[%emt 0:00:27]} 5. c3 {[%emt 0:00:10]} Nc6 {[%emt 0:00:18]} 6. Nf3 {[%emt 0:00:05]} Bd6 {[%emt 0:00:44]} 7. Bg3 {[%emt 0:00:05]} O-O {[%emt 0:00:27]} 8. Nbd2 {[%emt 0:00:03]} b6 {[%emt 0:00:20]} 9. Qe2 {[%emt 0:00:06]} c4 {[%emt 0:02:18]} 10. Bc2 {[%emt 0:00:37]} b5 {[%emt 0:00:38]} 11. e4 {[%emt 0:00:19]} Be7 {[%emt 0:00:55]} 12. Bh4 {[%emt 0:06:07]} b4 {[%emt 0:05:19]} 13. e5 {[%emt 0:01:57]} Ng4 {[%emt 0:07:27]} 14. Bxe7 {[%emt 0:01:01]} Qxe7 {[%emt 0:00:29]} 15. O-O {[%emt 0:18:22]} a5 {[%emt 0:06:00]} 16. Rfe1 {[%emt 0:10:53]} Bd7 {[%emt 0:07:01]} 17. Rac1 {[%emt 0:03:38]} f5 {[%emt 0:08:01]} 18. exf6 {[%emt 0:01:29]} Qxf6 {[%emt 0:06:43]} 19. Nf1 {[%emt 0:05:22]} Rae8 {[%emt 0:17:32]} 20. h3 {[%emt 0:05:19]} Nh6 {[%emt 0:04:27]} 21. N1h2 {[%emt 0:02:44]} Qf4 {[%emt 0:05:39]} 22. g3 {[%emt 0:04:37]} Qf6 {[%emt 0:03:20]} 23. Kg2 {[%emt 0:00:55]} Rf7 {[%emt 0:08:42]} 24. h4 {[%emt 0:02:45]} Ref8 {[%emt 0:03:25]} 25. Rf1 {[%emt 0:00:19]} Nf5 {[%emt 0:03:01]} 26. Ng4 {[%emt 0:03:43]} Qg6 {[%emt 0:04:09]} 27. Nge5 {[%emt 0:04:05]} Nxe5 {[%emt 0:00:32]} 28. Nxe5 {[%emt 0:00:09]} Nxh4+ {[%emt 0:00:07]} 29. Kh3 {[%emt 0:00:44]} Qh6 {[%emt 0:00:38]} 30. gxh4 {[%emt 0:01:23]} Rf4 {[%emt 0:00:46]} 31. Kg2 {[%emt 0:03:31]} Rxh4 {[%emt 0:01:13]} 32. Bxh7+ {[%emt 0:02:43]} Kxh7 {[%emt 0:01:17]} 33. Rh1 {[%emt 0:00:27]} Rff4 {[%emt 0:00:30]} 34. f3 {[%emt 0:00:42]} Qg5+ {[%emt 0:01:33]} 35. Ng4 {[%emt 0:06:42]} Kg8 {[%emt 0:00:14]} 36. Rxh4 {[%emt 0:01:10]} Qxh4 {[%emt 0:00:03]} 37. Qe5 {[%emt 0:01:38]} Rxg4+ {[%emt 0:00:58]} 38. fxg4 {[%emt 0:00:40]} Qxg4+ {[%emt 0:00:03]} 39. Qg3 {[%emt 0:00:44]} Qe2+ {[%emt 0:00:47]} 40. Kh1 {[%emt 0:00:00]} Qe4+ {[%emt 0:00:00]} 41. Kg1 {[%emt 0:01:09]} bxc3 {[%emt 0:09:38]} 42. bxc3 {[%emt 0:00:10]} Qd3 {[%emt 0:00:19]} 43. Qg5 {[%emt 0:11:36]} Qf5 {[%emt 0:10:08]} 44. Qd8+ {[%emt 0:01:26]} Kh7 {[%emt 0:00:06]} 45. Qh4+ {[%emt 0:00:04]} Kg8 {[%emt 0:05:25]} 46. Rf1 {[%emt 0:00:10]} Qg6+ {[%emt 0:00:13]} 47. Kh1 {[%emt 0:04:03]} Qe4+ {[%emt 0:04:16]} 48. Qxe4 {[%emt 0:00:13]} dxe4 {[%emt 0:00:07]} 49. Kg2 {[%emt 0:00:23]} g5 {[%emt 0:00:48]} 50. Rb1 {[%emt 0:00:20]} Kf7 {[%emt 0:01:05]} 51. Rb7 {[%emt 0:00:55]} Ke7 {[%emt 0:01:21]} 52. Rc7 {[%emt 0:00:27]} Kd6 {[%emt 0:00:05]} 53. Rc5 {[%emt 0:00:19]} g4 {[%emt 0:02:24]} 54. Rxa5 {[%emt 0:01:09]} Bc6 {[%emt 0:00:32]} 55. Re5 {[%emt 0:00:16]} Bd5 {[%emt 0:00:47]} 56. Kg3 {[%emt 0:00:06]} Kc6 {[%emt 0:00:11]} 57. Kxg4 {[%emt 0:00:30]} Kb5 {[%emt 0:00:04]} 58. Kf4 {[%emt 0:00:18]} Ka4 {[%emt 0:00:28]} 59. Rxe4 {[%emt 0:00:33]} Bxe4 {[%emt 0:00:04]} 60. Kxe4 {[%emt 0:00:04]} Ka3 {[%emt 0:00:05]} 61. d5 {[%emt 0:00:02]} 1-0